[Event "Titled Tuesday Blitz March 21 Early 2023"]
[White "Perez Gormaz, Matias"]
[Black "Dubov, Daniil"]
[WhiteFideId "3406342"]
[BlackFideId "24126055"]
[WhiteElo "2362"]
[BlackElo "2802"]
[Result "0-1"]
[Round "02"]
[TimeControl "180+2"]
[Date "2023.03.21"]
[WhiteClock "0:00:03"]
[BlackClock "0:00:09"]

1. Nf3 {[%clk 0:02:57]}  d5 {[%clk 0:02:59]} 2. b3 {[%clk 0:02:57]}  c5 {[%clk 0:02:54]} 3. e3 {[%clk 0:02:57]}  a6 {[%clk 0:02:50]} 4. Ba3 {[%clk 0:02:42]}  e6 {[%clk 0:02:45]} 5. c4 {[%clk 0:02:36]}  Nc6 {[%clk 0:02:44]} 6. Be2 {[%clk 0:02:30]}  d4 {[%clk 0:02:34]} 7. exd4 {[%clk 0:02:30]}  cxd4 {[%clk 0:02:35]} 8. Bxf8 {[%clk 0:02:30]}  Kxf8 {[%clk 0:02:36]} 9. d3 {[%clk 0:02:28]}  Nge7 {[%clk 0:02:28]} 10. O-O {[%clk 0:02:27]}  Ng6 {[%clk 0:02:28]} 11. Re1 {[%clk 0:02:28]}  e5 {[%clk 0:02:24]} 12. Bf1 {[%clk 0:02:22]}  Bf5 {[%clk 0:02:21]} 13. b4 {[%clk 0:02:16]}  Qf6 {[%clk 0:02:14]} 14. b5 {[%clk 0:02:02]}  Nce7 {[%clk 0:02:13]} 15. Nbd2 {[%clk 0:02:00]}  h5 {[%clk 0:02:10]} 16. a4 {[%clk 0:01:46]}  h4 {[%clk 0:02:09]} 17. Ne4 {[%clk 0:01:41]}  Bxe4 {[%clk 0:02:05]} 18. Rxe4 {[%clk 0:01:42]}  Nf5 {[%clk 0:02:03]} 19. Qd2 {[%clk 0:01:32]}  h3 {[%clk 0:01:59]} 20. g3 {[%clk 0:00:42]}  Nxg3 {[%clk 0:01:44]} 21. fxg3 {[%clk 0:00:42]}  Qxf3 {[%clk 0:01:44]} 22. bxa6 {[%clk 0:00:28]}  Rxa6 {[%clk 0:01:38]} 23. Qb4+ {[%clk 0:00:26]}  Kg8 {[%clk 0:01:37]} 24. Qxb7 {[%clk 0:00:25]}  Rf6 {[%clk 0:01:37]} 25. Bxh3 {[%clk 0:00:08]}  Nf8 {[%clk 0:01:10]} 26. Rf1 {[%clk 0:00:08]}  Qxd3 {[%clk 0:00:59]} 27. Rxf6 {[%clk 0:00:08]}  gxf6 {[%clk 0:01:00]} 28. Rg4+ {[%clk 0:00:08]}  Ng6 {[%clk 0:01:00]} 29. Bg2 {[%clk 0:00:02]}  Qe3+ {[%clk 0:00:58]} 30. Kf1 {[%clk 0:00:02]}  Qc1+ {[%clk 0:00:56]} 31. Kf2 {[%clk 0:00:03]}  Kg7 {[%clk 0:00:36]} 32. Bd5 {[%clk 0:00:01]}  Rxh2+ {[%clk 0:00:35]} 33. Bg2 {[%clk 0:00:01]}  Qe3+ {[%clk 0:00:20]} 34. Kf1 {[%clk 0:00:01]}  d3 {[%clk 0:00:19]} 35. Qd5 {[%clk 0:00:01]}  d2 {[%clk 0:00:14]} 36. Re4 {[%clk 0:00:02]}  Qxg3 {[%clk 0:00:09]} 37. Qxd2 {[%clk 0:00:03]}  Nf4 {[%clk 0:00:09]} 0-1


[Site "https://www.chess.com"]

[Event "Titled Tuesday Blitz March 21 Early 2023"]
[White "Firouzja, Alireza"]
[Black "Parkhov, Yair"]
[WhiteFideId "12573981"]
[BlackFideId "2813408"]
[WhiteElo "2904"]
[BlackElo "2421"]
[Result "0-1"]
[Round "02"]
[TimeControl "180+2"]
[Date "2023.03.21"]
[WhiteClock "0:00:01"]
[BlackClock "0:00:09"]

1. e4 {[%clk 0:03:00]}  c5 {[%clk 0:02:56]} 2. Nf3 {[%clk 0:03:00]}  d6 {[%clk 0:02:57]} 3. d4 {[%clk 0:03:00]}  cxd4 {[%clk 0:02:58]} 4. Nxd4 {[%clk 0:03:01]}  Nf6 {[%clk 0:02:58]} 5. Nc3 {[%clk 0:03:01]}  a6 {[%clk 0:02:55]} 6. Qf3 {[%clk 0:02:55]}  Nbd7 {[%clk 0:02:43]} 7. Be2 {[%clk 0:02:52]}  g6 {[%clk 0:02:39]} 8. Qg3 {[%clk 0:02:45]}  Qb6 {[%clk 0:02:26]} 9. Nb3 {[%clk 0:02:26]}  Bg7 {[%clk 0:02:23]} 10. h4 {[%clk 0:02:26]}  h5 {[%clk 0:02:04]} 11. Bg5 {[%clk 0:02:26]}  O-O {[%clk 0:02:00]} 12. O-O-O {[%clk 0:02:24]}  Qc7 {[%clk 0:01:54]} 13. Nd5 {[%clk 0:01:53]}  Nxd5 {[%clk 0:01:50]} 14. exd5 {[%clk 0:01:54]}  Nb6 {[%clk 0:01:48]} 15. Rhe1 {[%clk 0:01:28]}  Na4 {[%clk 0:01:39]} 16. c3 {[%clk 0:01:04]}  b5 {[%clk 0:01:35]} 17. Bxh5 {[%clk 0:00:54]}  Re8 {[%clk 0:00:54]} 18. a3 {[%clk 0:00:30]}  Bf5 {[%clk 0:00:50]} 19. Bg4 {[%clk 0:00:28]}  Bxg4 {[%clk 0:00:44]} 20. Qxg4 {[%clk 0:00:29]}  Nxb2 {[%clk 0:00:42]} 21. Bd2 {[%clk 0:00:18]}  Nxd1 {[%clk 0:00:28]} 22. Kxd1 {[%clk 0:00:17]}  Bxc3 {[%clk 0:00:25]} 23. h5 {[%clk 0:00:18]}  Bxd2 {[%clk 0:00:18]} 24. Nxd2 {[%clk 0:00:18]}  Rac8 {[%clk 0:00:13]} 25. Re4 {[%clk 0:00:13]}  Qc1+ {[%clk 0:00:12]} 26. Ke2 {[%clk 0:00:13]}  Rc2 {[%clk 0:00:13]} 27. Rd4 {[%clk 0:00:14]}  e5 {[%clk 0:00:12]} 28. Rd3 {[%clk 0:00:04]}  e4 {[%clk 0:00:13]} 29. Rd4 {[%clk 0:00:05]}  e3 {[%clk 0:00:13]} 30. fxe3 {[%clk 0:00:06]}  Qg1 {[%clk 0:00:13]} 31. Qf3 {[%clk 0:00:04]}  Rc1 {[%clk 0:00:13]} 32. hxg6 {[%clk 0:00:03]}  Qe1+ {[%clk 0:00:10]} 33. Kd3 {[%clk 0:00:03]}  fxg6 {[%clk 0:00:10]} 34. Rg4 {[%clk 0:00:03]}  Rxe3+ {[%clk 0:00:07]} 35. Qxe3 {[%clk 0:00:03]}  Rc3+ {[%clk 0:00:08]} 36. Kxc3 {[%clk 0:00:03]}  Qxe3+ {[%clk 0:00:08]} 37. Kc2 {[%clk 0:00:04]}  Kg7 {[%clk 0:00:08]} 38. a4 {[%clk 0:00:04]}  Qc5+ {[%clk 0:00:08]} 39. Kd3 {[%clk 0:00:04]}  Qxd5+ {[%clk 0:00:08]} 40. Rd4 {[%clk 0:00:05]}  Qf5+ {[%clk 0:00:08]} 41. Kc3 {[%clk 0:00:05]}  bxa4 {[%clk 0:00:09]} 42. Rxa4 {[%clk 0:00:06]}  Qc5+ {[%clk 0:00:09]} 43. Kb2 {[%clk 0:00:03]}  Qe5+ {[%clk 0:00:09]} 44. Kc2 {[%clk 0:00:02]}  Qb5 {[%clk 0:00:08]} 45. Rd4 {[%clk 0:00:01]}  d5 {[%clk 0:00:09]} 0-1


[Site "https://www.chess.com"]

[Event "Titled Tuesday Blitz March 21 Early 2023"]
[White "Schmakel, Sam"]
[Black "Sarana, Alexey"]
[WhiteFideId "2039311"]
[BlackFideId "24133795"]
[WhiteElo "2356"]
[BlackElo "2714"]
[Result "0-1"]
[Round "02"]
[TimeControl "180+2"]
[Date "2023.03.21"]
[WhiteClock "0:00:02"]
[BlackClock "0:00:03"]

1. Nf3 {[%clk 0:03:00]}  d5 {[%clk 0:02:59]} 2. g3 {[%clk 0:03:00]}  g6 {[%clk 0:03:00]} 3. Bg2 {[%clk 0:02:59]}  Bg7 {[%clk 0:03:00]} 4. O-O {[%clk 0:03:00]}  Nf6 {[%clk 0:03:01]} 5. b3 {[%clk 0:02:57]}  O-O {[%clk 0:02:58]} 6. Bb2 {[%clk 0:02:57]}  Nbd7 {[%clk 0:02:58]} 7. c4 {[%clk 0:02:51]}  c6 {[%clk 0:02:59]} 8. d3 {[%clk 0:02:50]}  Re8 {[%clk 0:02:59]} 9. cxd5 {[%clk 0:02:39]}  cxd5 {[%clk 0:02:57]} 10. Nc3 {[%clk 0:02:39]}  a6 {[%clk 0:02:51]} 11. e4 {[%clk 0:02:30]}  dxe4 {[%clk 0:02:46]} 12. dxe4 {[%clk 0:02:30]}  Nxe4 {[%clk 0:02:43]} 13. Nxe4 {[%clk 0:02:26]}  Bxb2 {[%clk 0:02:43]} 14. Rb1 {[%clk 0:02:27]}  Bg7 {[%clk 0:02:43]} 15. Qe2 {[%clk 0:02:27]}  Nf6 {[%clk 0:02:39]} 16. Rfd1 {[%clk 0:02:16]}  Qa5 {[%clk 0:02:39]} 17. b4 {[%clk 0:02:00]}  Qh5 {[%clk 0:02:39]} 18. Nxf6+ {[%clk 0:01:42]}  Bxf6 {[%clk 0:02:38]} 19. Rbc1 {[%clk 0:01:43]}  Bg4 {[%clk 0:02:23]} 20. Qe4 {[%clk 0:01:43]}  b6 {[%clk 0:02:14]} 21. Rd5 {[%clk 0:01:41]}  Bf5 {[%clk 0:02:09]} 22. Qe3 {[%clk 0:01:39]}  Qg4 {[%clk 0:02:04]} 23. Nd4 {[%clk 0:01:28]}  e6 {[%clk 0:01:31]} 24. Rd6 {[%clk 0:01:05]}  Rad8 {[%clk 0:01:27]} 25. Nxf5 {[%clk 0:00:51]}  gxf5 {[%clk 0:01:25]} 26. Qxb6 {[%clk 0:00:49]}  Rxd6 {[%clk 0:01:20]} 27. Qxd6 {[%clk 0:00:50]}  Qe2 {[%clk 0:01:19]} 28. Bf1 {[%clk 0:00:36]}  Qb2 {[%clk 0:01:12]} 29. Qc6 {[%clk 0:00:20]}  Rd8 {[%clk 0:00:51]} 30. Rc2 {[%clk 0:00:13]}  Qb1 {[%clk 0:00:51]} 31. Kg2 {[%clk 0:00:12]}  Rd1 {[%clk 0:00:47]} 32. Bxa6 {[%clk 0:00:06]}  Rg1+ {[%clk 0:00:47]} 33. Kh3 {[%clk 0:00:06]}  h5 {[%clk 0:00:35]} 34. Be2 {[%clk 0:00:02]}  Qxb4 {[%clk 0:00:29]} 35. Bxh5 {[%clk 0:00:01]}  Kg7 {[%clk 0:00:13]} 36. Qe8 {[%clk 0:00:01]}  Qe7 {[%clk 0:00:12]} 37. Qxe7 {[%clk 0:00:02]}  Bxe7 {[%clk 0:00:13]} 38. Rc7 {[%clk 0:00:02]}  Kf6 {[%clk 0:00:14]} 39. Bf3 {[%clk 0:00:03]}  Ra1 {[%clk 0:00:14]} 40. Ra7 {[%clk 0:00:03]}  Rb1 {[%clk 0:00:13]} 41. a4 {[%clk 0:00:03]}  Rb2 {[%clk 0:00:14]} 42. a5 {[%clk 0:00:02]}  Rxf2 {[%clk 0:00:14]} 43. Bc6 {[%clk 0:00:02]}  Ra2 {[%clk 0:00:13]} 44. a6 {[%clk 0:00:02]}  Bc5 {[%clk 0:00:13]} 45. Ra8 {[%clk 0:00:02]}  Bg1 {[%clk 0:00:13]} 46. g4 {[%clk 0:00:02]}  Rxh2+ {[%clk 0:00:10]} 47. Kg3 {[%clk 0:00:03]}  Ra2 {[%clk 0:00:10]} 48. gxf5 {[%clk 0:00:01]}  Kxf5 {[%clk 0:00:10]} 49. Rf8 {[%clk 0:00:01]}  f6 {[%clk 0:00:06]} 50. Bb5 {[%clk 0:00:02]}  Bf2+ {[%clk 0:00:03]} 51. Kf3 {[%clk 0:00:02]}  Bd4 {[%clk 0:00:04]} 52. Bd3+ {[%clk 0:00:02]}  Ke5 {[%clk 0:00:04]} 53. Re8 {[%clk 0:00:02]}  Ra3 {[%clk 0:00:04]} 54. Ke2 {[%clk 0:00:03]}  Ra4 {[%clk 0:00:04]} 55. Kd2 {[%clk 0:00:04]}  f5 {[%clk 0:00:04]} 56. Kc2 {[%clk 0:00:04]}  Ra5 {[%clk 0:00:03]} 57. Bc4 {[%clk 0:00:04]}  Kd6 {[%clk 0:00:02]} 58. Rxe6+ {[%clk 0:00:04]}  Kc5 {[%clk 0:00:03]} 59. Bd3 {[%clk 0:00:04]}  Ra2+ {[%clk 0:00:03]} 60. Kd1 {[%clk 0:00:04]}  f4 {[%clk 0:00:03]} 61. Re7 {[%clk 0:00:02]}  Be3 {[%clk 0:00:03]} 62. Ke1 {[%clk 0:00:02]}  Kd6 {[%clk 0:00:02]} 63. Rf7 {[%clk 0:00:01]}  Ke5 {[%clk 0:00:02]} 64. a7 {[%clk 0:00:01]}  Bxa7 {[%clk 0:00:01]} 65. Rf5+ {[%clk 0:00:01]}  Kd4 {[%clk 0:00:02]} 66. Bb5 {[%clk 0:00:01]}  Ke4 {[%clk 0:00:02]} 67. Rf7 {[%clk 0:00:01]}  Bf2+ {[%clk 0:00:02]} 68. Kd1 {[%clk 0:00:02]}  Bc5 {[%clk 0:00:02]} 69. Bc6+ {[%clk 0:00:02]}  Ke3 {[%clk 0:00:03]} 70. Kc1 {[%clk 0:00:03]}  Bd4 {[%clk 0:00:02]} 71. Kb1 {[%clk 0:00:03]}  Rb2+ {[%clk 0:00:03]} 72. Kc1 {[%clk 0:00:04]}  Rb6 {[%clk 0:00:03]} 73. Bd5 {[%clk 0:00:04]}  Rd6 {[%clk 0:00:02]} 74. Bb7 {[%clk 0:00:04]}  Bc3 {[%clk 0:00:02]} 75. Kc2 {[%clk 0:00:04]}  Bd4 {[%clk 0:00:02]} 76. Re7+ {[%clk 0:00:04]}  Kf2 {[%clk 0:00:02]} 77. Rf7 {[%clk 0:00:05]}  Be3 {[%clk 0:00:02]} 78. Kc3 {[%clk 0:00:05]}  Rd4 {[%clk 0:00:02]} 79. Rf8 {[%clk 0:00:05]}  Rd7 {[%clk 0:00:02]} 80. Be4 {[%clk 0:00:04]}  Re7 {[%clk 0:00:02]} 81. Kd3 {[%clk 0:00:04]}  Rc7 {[%clk 0:00:02]} 82. Rf5 {[%clk 0:00:04]}  Rd7+ {[%clk 0:00:02]} 83. Kc3 {[%clk 0:00:04]}  Rd1 {[%clk 0:00:02]} 84. Rf7 {[%clk 0:00:04]}  Rc1+ {[%clk 0:00:02]} 85. Kb3 {[%clk 0:00:04]}  Ke2 {[%clk 0:00:02]} 86. Rf8 {[%clk 0:00:04]}  Rc5 {[%clk 0:00:03]} 87. Rf7 {[%clk 0:00:04]}  Re5 {[%clk 0:00:03]} 88. Bc6 {[%clk 0:00:05]}  Re6 {[%clk 0:00:04]} 89. Bd5 {[%clk 0:00:04]}  Rd6 {[%clk 0:00:04]} 90. Kc4 {[%clk 0:00:04]}  Kd2 {[%clk 0:00:04]} 91. Rf8 {[%clk 0:00:03]}  Ra6 {[%clk 0:00:03]} 92. Rf7 {[%clk 0:00:04]}  Ra4+ {[%clk 0:00:04]} 93. Kb5 {[%clk 0:00:04]}  Rd4 {[%clk 0:00:04]} 94. Kc6 {[%clk 0:00:05]}  Kc3 {[%clk 0:00:04]} 95. Rf8 {[%clk 0:00:05]}  Rb4 {[%clk 0:00:04]} 96. Re8 {[%clk 0:00:03]}  Rb6+ {[%clk 0:00:03]} 97. Kc7 {[%clk 0:00:04]}  Rf6 {[%clk 0:00:03]} 98. Re6 {[%clk 0:00:03]}  Rf5 {[%clk 0:00:02]} 99. Kc6 {[%clk 0:00:03]}  Kd4 {[%clk 0:00:02]} 100. Re4+ {[%clk 0:00:04]}  Kd3 {[%clk 0:00:02]} 101. Re6 {[%clk 0:00:05]}  Rf8 {[%clk 0:00:02]} 102. Re7 {[%clk 0:00:02]}  f3 {[%clk 0:00:03]} 103. Bxf3 {[%clk 0:00:02]}  Rxf3 {[%clk 0:00:02]} 104. Kd5 {[%clk 0:00:03]}  Rf5+ {[%clk 0:00:02]} 105. Re5 {[%clk 0:00:03]}  Rf4 {[%clk 0:00:02]} 106. Re8 {[%clk 0:00:03]}  Ra4 {[%clk 0:00:03]} 107. Rb8 {[%clk 0:00:02]}  Ra5+ {[%clk 0:00:03]} 108. Kc6 {[%clk 0:00:03]}  Kc4 {[%clk 0:00:03]} 109. Rb1 {[%clk 0:00:03]}  Ra6+ {[%clk 0:00:03]} 110. Kd7 {[%clk 0:00:03]}  Rh6 {[%clk 0:00:02]} 111. Re1 {[%clk 0:00:02]}  Bd4 {[%clk 0:00:02]} 112. Ke7 {[%clk 0:00:01]}  Kd5 {[%clk 0:00:02]} 113. Kf7 {[%clk 0:00:01]}  Rf6+ {[%clk 0:00:03]} 114. Ke7 {[%clk 0:00:02]}  Rg6 {[%clk 0:00:03]} 115. Kf7 {[%clk 0:00:02]}  Rg7+ {[%clk 0:00:03]} 116. Kf8 {[%clk 0:00:03]}  Ra7 {[%clk 0:00:03]} 117. Ke8 {[%clk 0:00:01]}  Kd6 {[%clk 0:00:02]} 118. Rd1 {[%clk 0:00:01]}  Re7+ {[%clk 0:00:02]} 119. Kd8 {[%clk 0:00:01]}  Re4 {[%clk 0:00:03]} 120. Kc8 {[%clk 0:00:02]}  Kc6 {[%clk 0:00:03]} 121. Kd8 {[%clk 0:00:02]}  Bb6+ {[%clk 0:00:03]} 0-1


[Site "https://www.chess.com"]

[Event "Titled Tuesday Blitz March 21 Early 2023"]
[White "Bluebaum, Matthias"]
[Black "Hernandez Gonzalez, William"]
[WhiteFideId "24651516"]
[BlackFideId "3509915"]
[WhiteElo "2638"]
[BlackElo "2374"]
[Result "1-0"]
[Round "02"]
[TimeControl "180+2"]
[Date "2023.03.21"]
[WhiteClock "0:00:28"]
[BlackClock "0:00:14"]

1. d4 {[%clk 0:03:00]}  Nf6 {[%clk 0:02:58]} 2. c4 {[%clk 0:03:01]}  e6 {[%clk 0:02:58]} 3. Nc3 {[%clk 0:03:01]}  Bb4 {[%clk 0:02:57]} 4. e3 {[%clk 0:03:01]}  Bxc3+ {[%clk 0:02:57]} 5. bxc3 {[%clk 0:03:02]}  c5 {[%clk 0:02:57]} 6. Bd3 {[%clk 0:03:02]}  Nc6 {[%clk 0:02:55]} 7. Ne2 {[%clk 0:03:02]}  d6 {[%clk 0:02:54]} 8. e4 {[%clk 0:02:56]}  e5 {[%clk 0:02:53]} 9. O-O {[%clk 0:02:53]}  b6 {[%clk 0:02:49]} 10. f4 {[%clk 0:02:50]}  Bg4 {[%clk 0:02:03]} 11. Qa4 {[%clk 0:02:29]}  Qd7 {[%clk 0:01:54]} 12. fxe5 {[%clk 0:02:05]}  Nxe5 {[%clk 0:01:50]} 13. Qxd7+ {[%clk 0:02:04]}  Nexd7 {[%clk 0:01:46]} 14. Ng3 {[%clk 0:02:01]}  O-O-O {[%clk 0:01:26]} 15. Bf4 {[%clk 0:01:47]}  Nb8 {[%clk 0:01:22]} 16. h3 {[%clk 0:01:33]}  Bh5 {[%clk 0:01:04]} 17. Nf5 {[%clk 0:01:30]}  Ne8 {[%clk 0:00:56]} 18. e5 {[%clk 0:00:48]}  dxe5 {[%clk 0:00:43]} 19. Bxe5 {[%clk 0:00:48]}  f6 {[%clk 0:00:26]} 20. Bg3 {[%clk 0:00:47]}  Nc6 {[%clk 0:00:20]} 21. Be4 {[%clk 0:00:46]}  Na5 {[%clk 0:00:18]} 22. Rae1 {[%clk 0:00:41]}  Rd7 {[%clk 0:00:15]} 23. Bd5 {[%clk 0:00:37]}  Bg6 {[%clk 0:00:16]} 24. Be6 {[%clk 0:00:28]}  Kd8 {[%clk 0:00:17]} 25. Bxd7 {[%clk 0:00:27]}  Kxd7 {[%clk 0:00:15]} 26. Re7+ {[%clk 0:00:28]}  Kd8 {[%clk 0:00:14]} 27. Rxa7 {[%clk 0:00:28]} 1-0


[Site "https://www.chess.com"]

[Event "Titled Tuesday Blitz March 21 Early 2023"]
[White "Van Foreest, Jorden"]
[Black "Dehtiarov, Roman"]
[WhiteFideId "1039784"]
[BlackFideId "14186640"]
[WhiteElo "2633"]
[BlackElo "2162"]
[Result "0-1"]
[Round "02"]
[TimeControl "180+2"]
[Date "2023.03.21"]
[WhiteClock "0:00:58"]
[BlackClock "0:00:23"]

1. e4 {[%clk 0:03:00]}  e5 {[%clk 0:02:59]} 2. Nf3 {[%clk 0:03:00]}  Nc6 {[%clk 0:02:59]} 3. Bb5 {[%clk 0:03:01]}  a6 {[%clk 0:02:59]} 4. Ba4 {[%clk 0:03:02]}  Nf6 {[%clk 0:02:59]} 5. d3 {[%clk 0:03:02]}  b5 {[%clk 0:02:58]} 6. Bb3 {[%clk 0:03:02]}  Bc5 {[%clk 0:02:59]} 7. a4 {[%clk 0:02:59]}  Rb8 {[%clk 0:02:55]} 8. axb5 {[%clk 0:02:59]}  axb5 {[%clk 0:02:56]} 9. Nc3 {[%clk 0:02:59]}  O-O {[%clk 0:02:55]} 10. Bg5 {[%clk 0:02:59]}  h6 {[%clk 0:02:55]} 11. Bh4 {[%clk 0:02:59]}  Be7 {[%clk 0:02:53]} 12. O-O {[%clk 0:02:57]}  d6 {[%clk 0:02:53]} 13. h3 {[%clk 0:02:56]}  Be6 {[%clk 0:02:52]} 14. Bxf6 {[%clk 0:02:50]}  Bxf6 {[%clk 0:02:52]} 15. Bxe6 {[%clk 0:02:50]}  fxe6 {[%clk 0:02:53]} 16. Ne2 {[%clk 0:02:50]}  Ra8 {[%clk 0:02:46]} 17. c3 {[%clk 0:02:47]}  Ne7 {[%clk 0:02:43]} 18. Rxa8 {[%clk 0:02:40]}  Qxa8 {[%clk 0:02:44]} 19. Qb3 {[%clk 0:02:40]}  d5 {[%clk 0:02:38]} 20. Qxb5 {[%clk 0:02:16]}  dxe4 {[%clk 0:02:22]} 21. dxe4 {[%clk 0:02:17]}  Qxe4 {[%clk 0:02:22]} 22. Ng3 {[%clk 0:02:17]}  Qd5 {[%clk 0:02:21]} 23. Qe2 {[%clk 0:02:15]}  Nf5 {[%clk 0:02:10]} 24. Ne4 {[%clk 0:02:14]}  Rd8 {[%clk 0:02:02]} 25. Re1 {[%clk 0:02:10]}  Nd6 {[%clk 0:01:37]} 26. Rd1 {[%clk 0:02:06]}  Qxe4 {[%clk 0:01:32]} 27. Qxe4 {[%clk 0:01:56]}  Nxe4 {[%clk 0:01:33]} 28. Re1 {[%clk 0:01:57]}  Nc5 {[%clk 0:01:18]} 29. Nxe5 {[%clk 0:01:57]}  Nd3 {[%clk 0:01:16]} 30. Nxd3 {[%clk 0:01:56]}  Rxd3 {[%clk 0:01:17]} 31. Rxe6 {[%clk 0:01:53]}  Rd1+ {[%clk 0:01:17]} 32. Kh2 {[%clk 0:01:54]}  Rd2 {[%clk 0:01:18]} 33. f4 {[%clk 0:01:43]}  Rxb2 {[%clk 0:01:05]} 34. Rc6 {[%clk 0:01:43]}  Rb7 {[%clk 0:01:05]} 35. Kg3 {[%clk 0:01:39]}  Kf7 {[%clk 0:00:56]} 36. Kg4 {[%clk 0:01:37]}  Ke7 {[%clk 0:00:53]} 37. Kf5 {[%clk 0:01:33]}  Kd7 {[%clk 0:00:54]} 38. Rc5 {[%clk 0:01:32]}  Rb3 {[%clk 0:00:46]} 39. g4 {[%clk 0:01:30]}  Rxc3 {[%clk 0:00:40]} 40. Rd5+ {[%clk 0:01:31]}  Kc6 {[%clk 0:00:38]} 41. Rd1 {[%clk 0:01:30]}  Rxh3 {[%clk 0:00:38]} 42. Rc1+ {[%clk 0:01:27]}  Rc3 {[%clk 0:00:37]} 43. Rg1 {[%clk 0:01:27]}  Rc5+ {[%clk 0:00:37]} 44. Ke6 {[%clk 0:01:26]}  Kb6 {[%clk 0:00:32]} 45. Rb1+ {[%clk 0:01:21]}  Rb5 {[%clk 0:00:32]} 46. Rc1 {[%clk 0:01:22]}  c5 {[%clk 0:00:32]} 47. Kf7 {[%clk 0:00:57]}  Rb4 {[%clk 0:00:30]} 48. Rf1 {[%clk 0:00:57]}  c4 {[%clk 0:00:23]} 49. Kg6 {[%clk 0:00:57]}  c3 {[%clk 0:00:22]} 50. g5 {[%clk 0:00:58]}  hxg5 {[%clk 0:00:22]} 51. fxg5 {[%clk 0:00:59]}  Bd4 {[%clk 0:00:23]} 52. Kf5 {[%clk 0:00:58]}  Kc5 {[%clk 0:00:23]} 0-1


[Site "https://www.chess.com"]

[Event "Titled Tuesday Blitz March 21 Early 2023"]
[White "Bortnyk, Olexandr"]
[Black "Hamitevici, Vladimir"]
[WhiteFideId "14120828"]
[BlackFideId "13902393"]
[WhiteElo "2734"]
[BlackElo "2401"]
[Result "1-0"]
[Round "02"]
[TimeControl "180+2"]
[Date "2023.03.21"]
[WhiteClock "0:02:06"]
[BlackClock "0:00:10"]

1. d4 {[%clk 0:03:00]}  d5 {[%clk 0:02:44]} 2. Nc3 {[%clk 0:03:00]}  c6 {[%clk 0:02:41]} 3. Bf4 {[%clk 0:03:00]}  Bf5 {[%clk 0:02:36]} 4. e3 {[%clk 0:03:01]}  e6 {[%clk 0:02:35]} 5. Nf3 {[%clk 0:03:01]}  Bd6 {[%clk 0:02:35]} 6. Ne5 {[%clk 0:03:01]}  h6 {[%clk 0:02:25]} 7. h4 {[%clk 0:02:54]}  Ne7 {[%clk 0:02:12]} 8. Bd3 {[%clk 0:02:52]}  Qc7 {[%clk 0:02:01]} 9. Qh5 {[%clk 0:02:44]}  g6 {[%clk 0:01:55]} 10. Qf3 {[%clk 0:02:43]}  h5 {[%clk 0:01:50]} 11. e4 {[%clk 0:02:40]}  Bg4 {[%clk 0:01:39]} 12. Qg3 {[%clk 0:02:13]}  dxe4 {[%clk 0:00:51]} 13. Nxe4 {[%clk 0:02:13]}  Nf5 {[%clk 0:00:51]} 14. Nxd6+ {[%clk 0:02:13]}  Qxd6 {[%clk 0:00:52]} 15. Bxf5 {[%clk 0:02:13]}  Bxf5 {[%clk 0:00:38]} 16. Nxf7 {[%clk 0:02:10]}  Qb4+ {[%clk 0:00:37]} 17. c3 {[%clk 0:02:10]}  Qxb2 {[%clk 0:00:37]} 18. Nd6+ {[%clk 0:02:11]}  Kd7 {[%clk 0:00:26]} 19. O-O {[%clk 0:02:11]}  Qc2 {[%clk 0:00:17]} 20. Nxb7 {[%clk 0:02:06]}  Qd3 {[%clk 0:00:10]} 21. Nc5+ {[%clk 0:02:06]} 1-0


[Site "https://www.chess.com"]

[Event "Titled Tuesday Blitz March 21 Early 2023"]
[White "Howell, David W L"]
[Black "Bronstein, Or"]
[WhiteFideId "410608"]
[BlackFideId "2815770"]
[WhiteElo "2567"]
[BlackElo "2356"]
[Result "1-0"]
[Round "02"]
[TimeControl "180+2"]
[Date "2023.03.21"]
[WhiteClock "0:00:15"]
[BlackClock "0:00:12"]

1. d4 {[%clk 0:02:58]}  Nf6 {[%clk 0:02:58]} 2. Bf4 {[%clk 0:02:55]}  b6 {[%clk 0:02:53]} 3. e3 {[%clk 0:02:44]}  Bb7 {[%clk 0:02:53]} 4. Nf3 {[%clk 0:02:43]}  g6 {[%clk 0:02:52]} 5. h3 {[%clk 0:02:38]}  Bg7 {[%clk 0:02:52]} 6. Be2 {[%clk 0:02:38]}  O-O {[%clk 0:02:52]} 7. O-O {[%clk 0:02:39]}  d6 {[%clk 0:02:51]} 8. Bh2 {[%clk 0:02:39]}  Nbd7 {[%clk 0:02:51]} 9. a4 {[%clk 0:02:38]}  a6 {[%clk 0:02:42]} 10. Nbd2 {[%clk 0:02:30]}  Re8 {[%clk 0:02:40]} 11. c3 {[%clk 0:02:30]}  e5 {[%clk 0:02:39]} 12. Qb3 {[%clk 0:02:31]}  e4 {[%clk 0:01:57]} 13. Ne1 {[%clk 0:02:30]}  a5 {[%clk 0:01:53]} 14. Nc2 {[%clk 0:02:23]}  Qe7 {[%clk 0:01:52]} 15. Na3 {[%clk 0:02:24]}  h5 {[%clk 0:01:43]} 16. Nb5 {[%clk 0:02:24]}  Nf8 {[%clk 0:01:42]} 17. Nc4 {[%clk 0:02:16]}  Bd5 {[%clk 0:01:34]} 18. Qa3 {[%clk 0:02:10]}  Bxc4 {[%clk 0:01:03]} 19. Bxc4 {[%clk 0:02:11]}  d5 {[%clk 0:01:02]} 20. Be2 {[%clk 0:01:57]}  Ne6 {[%clk 0:01:00]} 21. c4 {[%clk 0:01:44]}  c6 {[%clk 0:00:55]} 22. Nd6 {[%clk 0:01:22]}  Red8 {[%clk 0:00:53]} 23. Nxe4 {[%clk 0:01:14]}  Qe8 {[%clk 0:00:26]} 24. Nxf6+ {[%clk 0:01:10]}  Bxf6 {[%clk 0:00:27]} 25. cxd5 {[%clk 0:01:11]}  Rxd5 {[%clk 0:00:11]} 26. Bf3 {[%clk 0:01:06]}  Rf5 {[%clk 0:00:12]} 27. Be4 {[%clk 0:00:56]}  Nxd4 {[%clk 0:00:12]} 28. Bxf5 {[%clk 0:00:54]}  Nxf5 {[%clk 0:00:13]} 29. Rad1 {[%clk 0:00:52]}  b5 {[%clk 0:00:13]} 30. b3 {[%clk 0:00:47]}  b4 {[%clk 0:00:13]} 31. Qc1 {[%clk 0:00:46]}  Bc3 {[%clk 0:00:13]} 32. Qc2 {[%clk 0:00:43]}  Qe6 {[%clk 0:00:13]} 33. Rd3 {[%clk 0:00:42]}  Re8 {[%clk 0:00:14]} 34. Rfd1 {[%clk 0:00:42]}  c5 {[%clk 0:00:13]} 35. Rd8 {[%clk 0:00:40]}  Kg7 {[%clk 0:00:12]} 36. Rxe8 {[%clk 0:00:40]}  Qxe8 {[%clk 0:00:13]} 37. Qd3 {[%clk 0:00:37]}  Qe6 {[%clk 0:00:13]} 38. Qd5 {[%clk 0:00:38]}  Qxd5 {[%clk 0:00:13]} 39. Rxd5 {[%clk 0:00:39]}  c4 {[%clk 0:00:14]} 40. bxc4 {[%clk 0:00:37]}  b3 {[%clk 0:00:14]} 41. Kf1 {[%clk 0:00:18]}  b2 {[%clk 0:00:14]} 42. Rb5 {[%clk 0:00:18]}  Kf8 {[%clk 0:00:13]} 43. Rb3 {[%clk 0:00:17]}  Ke7 {[%clk 0:00:12]} 44. Ke2 {[%clk 0:00:17]}  Nd6 {[%clk 0:00:13]} 45. Kd3 {[%clk 0:00:15]}  Bg7 {[%clk 0:00:14]} 46. Bxd6+ {[%clk 0:00:14]}  Kxd6 {[%clk 0:00:14]} 47. Rb5 {[%clk 0:00:15]}  Kc6 {[%clk 0:00:14]} 48. Kc2 {[%clk 0:00:15]}  f5 {[%clk 0:00:13]} 49. Rxa5 {[%clk 0:00:15]}  h4 {[%clk 0:00:13]} 50. Rb5 {[%clk 0:00:14]}  Bf6 {[%clk 0:00:13]} 51. a5 {[%clk 0:00:14]}  Kc7 {[%clk 0:00:12]} 52. a6 {[%clk 0:00:15]} 1-0


[Site "https://www.chess.com"]